bitfinex-derivatives/quotes_BTCF0:USTF0_20250901
["timestamp","ask_amount","ask_price","bid_price","bid_amount"]
[1756713754488,2.28696,109800.0,109770.0,1.39320995]
[1756713754687,1.94689964,109800.0,109790.0,0.24665646]
[1756713754888,2.91245964,109800.0,109790.0,0.60745646]
[1756713755087,2.91237964,109800.0,109790.0,0.24665646]
[1756713755285,2.91237964,109800.0,109790.0,0.10466199]
[1756713755486,3.5198361,109800.0,109790.0,0.10466199]
[1756713755693,3.27317964,109800.0,109790.0,0.35466199]
[1756713755893,2.91237964,109800.0,109790.0,0.35466199]
[1756713756283,1.94681964,109800.0,109790.0,0.35466199]
[1756713756489,2.91177964,109800.0,109790.0,0.35466199]
[1756713757396,2.89104,109800.0,109790.0,0.35466199]
[1756713757690,2.9117663,109800.0,109790.0,0.35466199]
[1756713757896,2.89104,109800.0,109790.0,0.35466199]
[1756713758390,3.25184,109800.0,109790.0,0.10466199]
[1756713758599,2.89104,109800.0,109790.0,0.10466199]
[1756713758789,3.25184,109800.0,109790.0,0.10466199]
[1756713758984,1.94680326,109800.0,109790.0,0.35466199]
[1756713759184,2.90948326,109800.0,109790.0,0.35466199]
[1756713759395,1.94680326,109800.0,109790.0,0.56893691]
[1756713759592,2.90984326,109800.0,109790.0,0.35466199]
[1756713759789,2.30760326,109800.0,109790.0,0.10466199]
[1756713759985,3.27040326,109800.0,109790.0,0.10466199]
[1756713760592,2.90960326,109800.0,109790.0,0.10466199]
[1756713760791,2.30760326,109800.0,109790.0,0.10466199]
[1756713760998,2.91188326,109800.0,109790.0,0.31893691]
[1756713761297,1.94680326,109800.0,109790.0,0.67973691]
[1756713761497,1.92608,109800.0,109790.0,0.71546199]
[1756713761697,2.891,109800.0,109790.0,0.92973691]
[1756713762091,0.3608,109830.0,109790.0,1.26973691]
[1756713762295,0.96424,109820.0,109800.0,0.57507492]
[1756713762490,0.02070344,109820.0,109800.0,0.57507492]
[1756713762696,0.02070344,109820.0,109810.0,0.57507492]
[1756713762902,0.98502344,109820.0,109810.0,0.57507492]
[1756713763202,0.02070344,109820.0,109810.0,0.7018616]
[1756713763396,0.02070344,109820.0,109810.0,1.0218616]
[1756713763600,0.02070344,109820.0,109810.0,1.14507492]
[1756713763806,0.02070344,109820.0,109810.0,1.21712672]
[1756713763996,0.02070344,109820.0,109810.0,1.22602009]
[1756713764493,0.02070344,109820.0,109810.0,1.31708039]
[1756713765296,0.20276,109840.0,109830.0,0.21427492]
[1756713765599,0.20276,109840.0,109830.0,0.57507492]
[1756713766199,0.20276,109840.0,109830.0,0.3608]
[1756713766401,0.20276,109840.0,109830.0,0.57507492]
[1756713766600,0.20276,109840.0,109830.0,0.3608]
[1756713766802,0.20276,109840.0,109830.0,0.57507492]
[1756713767296,0.96296,109850.0,109830.0,0.57507492]
[1756713767695,0.04847498,109850.0,109840.0,0.57507492]
[1756713768001,1.01415498,109860.0,109840.0,0.57507492]
[1756713768200,0.04847498,109860.0,109840.0,0.57507492]
[1756713768398,0.04847498,109860.0,109850.0,0.21427492]
[1756713768794,1.01363498,109870.0,109850.0,0.57507492]
[1756713769001,1.01355498,109870.0,109860.0,0.3608]
[1756713769198,1.01355498,109870.0,109850.0,0.38147385]
[1756713769907,1.01355498,109870.0,109850.0,0.59574877]
[1756713770110,0.04847498,109860.0,109850.0,0.02067385]
[1756713770503,1.37435498,109870.0,109850.0,0.02067385]
[1756713770806,0.3608,109860.0,109850.0,0.02067385]
[1756713771101,1.5886299,109870.0,109850.0,0.02067385]
[1756713771102,1.37435498,109870.0,109850.0,0.02067385]
[1756713771296,0.97052,109860.0,109850.0,0.59574877]
[1756713771501,0.97052,109860.0,109850.0,0.70041076]
[1756713771802,1.01899498,109860.0,109850.0,0.33961076]
[1756713772001,0.97052,109860.0,109850.0,0.33961076]
[1756713772409,0.97052,109860.0,109850.0,0.12533584]
[1756713772705,1.22052,109860.0,109850.0,0.12533584]
[1756713773205,1.62979498,109860.0,109850.0,0.12533584]
[1756713773401,0.29847498,109860.0,109850.0,0.12533584]
[1756713773607,1.01935498,109860.0,109850.0,0.12533584]
[1756713773905,1.01935498,109860.0,109850.0,0.33961076]
[1756713774104,1.8444299,109860.0,109850.0,0.12533584]
[1756713774700,1.58168,109860.0,109850.0,0.12533584]
[1756713774899,0.3608,109860.0,109850.0,0.12533584]
[1756713775109,1.39002679,109860.0,109850.0,0.12533584]
[1756713775505,1.64002679,109860.0,109850.0,0.12533584]
[1756713775710,1.85402171,109860.0,109850.0,0.12533584]
[1756713775901,1.38974679,109860.0,109850.0,0.12533584]
[1756713776105,1.63974679,109860.0,109850.0,0.12533584]
[1756713776509,1.8860817,109860.0,109850.0,0.12533584]
[1756713776814,1.59084,109860.0,109850.0,0.12533584]
[1756713777309,1.61092333,109860.0,109850.0,0.12533584]
[1756713777509,1.25012333,109860.0,109850.0,0.12533584]
[1756713777708,1.61092333,109860.0,109850.0,0.12533584]
[1756713778508,0.99856333,109860.0,109850.0,0.37167075]
[1756713778709,0.99856333,109860.0,109850.0,0.12533584]
[1756713778910,0.99856333,109860.0,109850.0,0.37167075]
[1756713779102,0.99856333,109860.0,109850.0,0.12533584]
[1756713779709,1.35936333,109860.0,109850.0,0.12533584]
[1756713780813,1.35936333,109860.0,109850.0,0.37167075]
[1756713781008,0.99844333,109860.0,109850.0,0.98247075]
[1756713781209,0.99844333,109860.0,109850.0,1.34247075]
[1756713781420,1.00036333,109860.0,109850.0,0.73613584]
[1756713781610,1.00036333,109860.0,109850.0,0.98247075]
[1756713781918,0.02044333,109860.0,109850.0,0.98247075]
[1756713782114,1.00036333,109860.0,109850.0,0.12533584]
[1756713782516,1.36116333,109860.0,109850.0,0.12533584]
[1756713783719,1.00036333,109860.0,109850.0,0.12533584]
[1756713783920,1.60749824,109860.0,109850.0,0.12533584]
[1756713784220,1.00036333,109860.0,109850.0,0.12533584]
[1756713784420,1.36116333,109860.0,109850.0,0.12533584]
[1756713784923,1.85749824,109860.0,109850.0,0.12533584]
[1756713785117,1.61116333,109860.0,109850.0,0.12533584]
[1756713785417,1.90640503,109860.0,109850.0,0.12533584]
[1756713785748,1.66007012,109860.0,109850.0,0.10466199]
[1756713786043,1.36536333,109860.0,109850.0,0.10466199]
[1756713786430,1.61536333,109860.0,109850.0,0.10466199]
[1756713786934,1.86169824,109860.0,109850.0,0.10466199]
[1756713787334,1.61536333,109860.0,109850.0,0.10466199]
[1756713787534,1.86169824,109860.0,109850.0,0.10466199]
[1756713787939,1.91060503,109860.0,109850.0,0.10466199]
[1756713788732,1.41415012,109860.0,109850.0,0.10466199]
[1756713788940,1.66048503,109860.0,109850.0,0.10466199]
[1756713789546,1.41415012,109860.0,109850.0,0.10466199]
[1756713789843,1.66048503,109860.0,109850.0,0.10466199]
[1756713790435,1.6400417,109860.0,109850.0,0.10466199]
[1756713790635,1.59113491,109860.0,109850.0,0.10466199]
[1756713791635,1.66223449,109860.0,109850.0,0.10466199]
[1756713792442,1.64015304,109860.0,109850.0,0.10466199]
[1756713792740,1.66168923,109860.0,109850.0,0.10466199]
[1756713792943,1.61633619,109860.0,109850.0,0.10466199]
[1756713793138,1.8626711,109860.0,109850.0,0.10466199]
[1756713793838,1.92802861,109860.0,109800.0,0.62759893]
[1756713794142,1.92802861,109860.0,109810.0,0.24633491]
[1756713794143,0.3608,109820.0,109810.0,0.24633491]
[1756713794444,1.36297619,109820.0,109800.0,0.62759893]
[1756713794839,1.00217619,109820.0,109800.0,0.63682197]
[1756713795139,1.36297619,109820.0,109800.0,0.63682197]
[1756713795334,0.3608,109810.0,109800.0,0.02046402]
[1756713795545,0.6286711,109810.0,109780.0,0.02013302]
[1756713795733,0.3608,109790.0,109780.0,0.02013302]
[1756713795938,0.98016,109790.0,109780.0,0.26646793]
[1756713796139,0.98052,109810.0,109780.0,0.94726793]
[1756713796346,0.02154842,109810.0,109800.0,0.3608]
[1756713796540,0.3608,109840.0,109800.0,1.17346982]
[1756713796741,0.62841671,109840.0,109810.0,0.60713491]
[1756713796941,0.60713491,109830.0,109810.0,0.3608]
[1756713797138,0.60713491,109820.0,109790.0,0.3608]
[1756713797343,0.3608,109800.0,109780.0,0.11358496]
[1756713797542,0.3608,109830.0,109790.0,0.24633491]
[1756713797845,0.62831148,109830.0,109790.0,0.3608]
[1756713798038,0.3608,109820.0,109800.0,0.24633491]
[1756713798244,0.38197657,109820.0,109800.0,0.24633491]
[1756713798446,0.38197657,109820.0,109790.0,0.3608]
[1756713798447,0.38197657,109820.0,109790.0,0.60713491]
[1756713798645,0.3608,109810.0,109790.0,0.60713491]
[1756713798845,0.38197657,109810.0,109790.0,0.60713491]
[1756713799041,0.38197657,109810.0,109790.0,0.3608]
[1756713799248,0.38197657,109810.0,109790.0,0.60689491]
[1756713800049,0.38197657,109810.0,109790.0,0.36056]
[1756713800248,0.38197657,109810.0,109800.0,0.10466199]
[1756713800452,0.3608,109830.0,109800.0,0.7117969]
[1756713800650,0.3608,109820.0,109800.0,0.10466199]
[1756713800948,0.38185244,109820.0,109800.0,0.3509969]
[1756713801143,0.02105244,109820.0,109800.0,0.7117969]
[1756713801350,0.02105244,109820.0,109800.0,0.46546199]
[1756713801541,0.26738735,109820.0,109800.0,0.46546199]
[1756713801745,0.60713491,109810.0,109800.0,0.10466199]
[1756713801945,0.62818735,109810.0,109800.0,0.10466199]
[1756713802146,0.02105244,109810.0,109800.0,0.10466199]
[1756713802344,0.62818735,109810.0,109800.0,0.10466199]
[1756713802544,0.87818735,109810.0,109800.0,0.10466199]
[1756713802750,0.63185244,109810.0,109800.0,0.10466199]
[1756713803051,0.87818735,109810.0,109800.0,0.10466199]
[1756713805147,0.63185244,109810.0,109800.0,0.10466199]
[1756713805343,0.87818735,109810.0,109800.0,0.10466199]
[1756713806549,1.12452226,109810.0,109800.0,0.10466199]
[1756713807352,3.04920226,109810.0,109800.0,0.10466199]
[1756713807955,3.14920226,109810.0,109800.0,0.09761076]
[1756713808351,0.26318924,109800.0,109750.0,0.045]
[1756713808652,0.60713491,109760.0,109750.0,0.045]
[1756713808848,2.53193491,109760.0,109750.0,0.045]
[1756713809047,2.77826982,109760.0,109750.0,0.045]
[1756713809448,3.02826982,109760.0,109750.0,0.045]
[1756713809654,3.02826982,109760.0,109750.0,0.04955]
[1756713810358,2.5356,109760.0,109750.0,0.04955]
[1756713810549,3.02826982,109760.0,109750.0,0.04955]
[1756713810854,2.78738011,109760.0,109750.0,0.04955]
[1756713811558,2.78738011,109760.0,109750.0,0.15421199]
[1756713811747,2.86095146,109760.0,109750.0,0.15421199]
[1756713812146,2.60550626,109760.0,109750.0,0.15421199]
[1756713812348,2.60550626,109760.0,109750.0,0.40421199]
[1756713812548,2.2856,109760.0,109750.0,0.40421199]
[1756713812750,1.94577228,109760.0,109750.0,0.40421199]
[1756713813546,1.94577228,109760.0,109750.0,1.0113469]
[1756713813752,1.94577228,109760.0,109750.0,0.40421199]
[1756713814144,1.94577228,109760.0,109750.0,0.40417199]
[1756713814557,1.94577228,109760.0,109750.0,1.0112069]
[1756713814953,2.92577228,109760.0,109750.0,1.0112069]
[1756713815347,2.92577228,109760.0,109750.0,1.3912069]
[1756713815656,1.00041228,109760.0,109750.0,1.0112069]
[1756713815950,1.00149228,109760.0,109750.0,1.3312069]
[1756713816152,0.02097228,109760.0,109750.0,1.0112069]
[1756713816352,1.00113228,109760.0,109750.0,0.76487199]
[1756713816552,1.00113228,109760.0,109750.0,1.0112069]
[1756713817259,1.00113228,109760.0,109750.0,0.51487199]
[1756713817450,1.00113228,109760.0,109750.0,0.76487199]
[1756713817957,0.98016,109760.0,109750.0,0.76032199]
[1756713818653,0.98016,109760.0,109750.0,0.51032199]
[1756713818853,0.98016,109760.0,109750.0,0.14952199]
[1756713819159,1.22649491,109760.0,109750.0,0.14952199]
[1756713819560,1.83729491,109760.0,109750.0,0.14952199]
[1756713819762,2.10458017,109760.0,109750.0,0.14952199]
[1756713821258,2.20458017,109760.0,109750.0,0.14952199]
[1756713821452,1.22442017,109760.0,109750.0,0.14952199]
[1756713821662,1.85410017,109760.0,109750.0,0.14952199]
[1756713822756,1.85366017,109760.0,109750.0,0.14952199]
[1756713822959,1.13600685,109760.0,109750.0,0.14952199]
[1756713823163,0.97600685,109760.0,109750.0,0.14952199]
[1756713823360,1.85186017,109760.0,109750.0,0.14952199]
[1756713824058,0.62808526,109760.0,109750.0,0.14952199]
[1756713824265,1.85222017,109760.0,109750.0,0.14952199]
[1756713824463,0.87442017,109760.0,109750.0,0.14952199]
[1756713824768,1.36019035,109760.0,109750.0,0.14952199]
[1756713824962,1.60652526,109760.0,109750.0,0.14952199]
[1756713825265,2.10286017,109760.0,109750.0,0.14952199]
[1756713825657,0.38175035,109760.0,109750.0,0.14952199]
[1756713826061,0.38175035,109760.0,109750.0,0.39952199]
[1756713826062,1.35875035,109760.0,109750.0,0.39952199]
[1756713826264,1.60508526,109760.0,109750.0,0.39952199]
[1756713826564,0.38175035,109760.0,109750.0,0.39952199]
[1756713827066,1.60492526,109760.0,109750.0,0.39952199]
[1756713827458,1.35775035,109760.0,109750.0,0.39952199]
[1756713828372,1.60408526,109760.0,109750.0,0.39952199]
[1756713828867,1.35775035,109760.0,109750.0,0.39952199]
[1756713829467,1.85042017,109760.0,109750.0,0.14952199]
[1756713829660,2.10042017,109760.0,109750.0,0.14952199]
[1756713830361,0.38175035,109760.0,109750.0,0.14952199]
[1756713830563,1.60216526,109760.0,109750.0,0.14952199]
[1756713831865,1.35583035,109760.0,109750.0,0.14952199]
[1756713832057,1.60216526,109760.0,109750.0,0.14952199]
[1756713833172,1.84850017,109760.0,109750.0,0.14952199]
[1756713833371,2.09850017,109760.0,109750.0,0.14952199]
[1756713835365,2.09841812,109760.0,109750.0,0.14952199]
[1756713836171,1.85208321,109760.0,109750.0,0.14952199]
[1756713836368,0.62800321,109760.0,109750.0,0.14952199]
[1756713836672,0.64400321,109760.0,109750.0,0.15052199]
[1756713836871,1.61176321,109760.0,109750.0,0.15052199]
[1756713837674,1.85809812,109760.0,109750.0,0.15052199]
[1756713838368,2.10809812,109760.0,109750.0,0.15052199]
[1756713839065,2.15715092,109760.0,109750.0,0.15052199]
[1756713839272,1.90715092,109760.0,109750.0,0.15052199]
[1756713839667,0.93939092,109760.0,109750.0,0.15052199]
[1756713839866,1.90415092,109760.0,109750.0,0.15052199]
[1756713840472,2.15415092,109760.0,109750.0,0.15052199]
[1756713840668,2.18045563,109760.0,109750.0,0.15052199]
[1756713840872,0.3608,109750.0,109740.0,0.00013662]
[1756713841072,2.95315003,109750.0,109740.0,0.00013662]
[1756713841367,0.8533332,109740.0,109730.0,0.00455]
[1756713841563,1.39499819,109740.0,109730.0,0.00455]
[1756713841763,2.13766801,109740.0,109730.0,0.00455]
[1756713842268,2.13694801,109740.0,109730.0,0.00455]
[1756713843070,2.14494801,109740.0,109730.0,0.00555]
[1756713843271,1.59918659,109740.0,109730.0,0.00555]
[1756713843670,1.59842659,109740.0,109730.0,0.00555]
[1756713843870,1.59818659,109740.0,109730.0,0.25555]
[1756713844069,1.59818659,109740.0,109730.0,0.36021199]
[1756713844266,1.59818659,109740.0,109730.0,0.11021199]
[1756713844663,1.59818659,109740.0,109730.0,0.10566199]
[1756713844867,1.59770659,109740.0,109730.0,0.10566199]
[1756713845268,0.63586659,109740.0,109730.0,0.10566199]
[1756713845468,1.59774659,109740.0,109730.0,0.10566199]
[1756713845863,1.59718659,109740.0,109730.0,0.35566199]
[1756713846173,0.38953168,109740.0,109730.0,0.35566199]
[1756713846373,1.60589268,109740.0,109730.0,0.35566199]
[1756713846968,0.64513268,109740.0,109730.0,0.35566199]
[1756713847369,1.59606659,109740.0,109730.0,0.35566199]
[1756713847978,1.60501397,109740.0,109730.0,0.35566199]
[1756713848879,1.59606659,109740.0,109730.0,0.35566199]
[1756713849678,1.60510137,109740.0,109730.0,0.10566199]
[1756713850580,1.60226137,109740.0,109730.0,0.10566199]
[1756713851673,0.64490137,109740.0,109730.0,0.10566199]
[1756713851879,0.63586659,109740.0,109730.0,0.35566199]
[1756713852077,1.59206659,109740.0,109730.0,0.35566199]
[1756713852580,0.63586659,109740.0,109730.0,0.35566199]
[1756713852781,1.59202659,109740.0,109730.0,0.35566199]
[1756713853882,1.59134659,109740.0,109730.0,0.35566199]
[1756713854279,1.59074659,109740.0,109730.0,0.35566199]
[1756713855382,0.63586659,109740.0,109730.0,0.35566199]
[1756713855784,1.34309168,109740.0,109730.0,0.35566199]
[1756713855984,1.58942659,109740.0,109730.0,0.35566199]
[1756713856876,1.58846659,109740.0,109730.0,0.35566199]
[1756713857076,1.58818659,109740.0,109730.0,0.35566199]
[1756713857384,1.34185168,109740.0,109730.0,0.35566199]
[1756713857585,1.58818659,109740.0,109730.0,0.35566199]
[1756713859389,1.34033168,109740.0,109730.0,0.35566199]
[1756713859588,1.58666659,109740.0,109730.0,0.35566199]
[1756713862590,1.34033168,109740.0,109730.0,0.35566199]
[1756713862790,0.0288683,109740.0,109730.0,0.6019969]
[1756713862987,0.9566,109740.0,109730.0,0.9627969]
[1756713863991,0.95552,109740.0,109730.0,0.9627969]
[1756713865200,0.95552,109740.0,109730.0,0.71646199]
[1756713865400,0.95552,109740.0,109730.0,0.9627969]
[1756713866102,0.95552,109740.0,109730.0,0.71646199]
[1756713866298,0.95552,109740.0,109730.0,0.46646199]
[1756713867206,0.95552,109740.0,109730.0,0.10566199]
[1756713867604,1.20185491,109740.0,109730.0,0.10566199]
[1756713868211,0.95552,109740.0,109730.0,0.10566199]
[1756713869301,0.95268,109740.0,109730.0,0.71646199]
[1756713869501,0.95148,109740.0,109730.0,0.9627969]
[1756713869708,0.95148,109740.0,109730.0,0.10566199]
[1756713870513,1.19781491,109740.0,109730.0,0.10566199]
[1756713871215,1.55861491,109740.0,109730.0,0.10566199]
[1756713871518,1.57964015,109740.0,109730.0,0.10566199]
[1756713873017,1.82964015,109740.0,109730.0,0.10566199]
[1756713877725,1.57806524,109740.0,109730.0,0.10566199]
[1756713877913,1.87354666,109740.0,109730.0,0.10566199]
[1756713878315,1.62721175,109740.0,109730.0,0.10566199]
[1756713878515,1.87354666,109740.0,109730.0,0.10566199]
[1756713878823,0.43897175,109740.0,109730.0,0.10566199]
[1756713879115,0.02902524,109740.0,109730.0,0.9627969]
[1756713879420,0.96662524,109740.0,109730.0,0.72567645]
[1756713879918,0.96662524,109740.0,109730.0,0.71646199]
[1756713880306,0.02902524,109740.0,109730.0,0.71646199]
[1756713880510,0.96610524,109740.0,109730.0,0.71646199]
[1756713880708,0.02902524,109740.0,109730.0,1.49512148]
[1756713880910,0.008,109740.0,109730.0,1.5040219]
[1756713881620,0.008,109740.0,109730.0,1.4128977]
[1756713881819,0.008,109740.0,109730.0,1.5040219]
[1756713882918,0.008,109740.0,109730.0,1.52397765]
[1756713883612,0.008,109740.0,109730.0,1.27764274]
[1756713883810,0.008,109740.0,109730.0,1.52397765]
[1756713884209,0.008,109740.0,109730.0,0.93651854]
[1756713884426,0.008,109740.0,109730.0,0.86531816]
[1756713884721,0.02903491,109740.0,109730.0,0.22451816]
[1756713884917,0.02903491,109740.0,109730.0,0.12561774]
[1756713885222,0.52536982,109740.0,109730.0,0.12561774]
[1756713885424,0.27903491,109740.0,109730.0,0.12561774]
[1756713885721,0.52536982,109740.0,109730.0,0.12561774]
[1756713885918,0.27903491,109740.0,109730.0,0.48641774]
[1756713886112,0.02903491,109740.0,109730.0,1.33275265]
[1756713887022,0.02903491,109740.0,109730.0,1.35275265]
[1756713887222,0.02903491,109740.0,109730.0,1.10275265]
[1756713887522,0.02903491,109740.0,109730.0,1.31275265]
[1756713887721,0.008,109740.0,109730.0,1.47592296]
[1756713889820,0.008,109740.0,109730.0,2.41112296]
[1756713892020,0.008,109740.0,109730.0,2.16478805]
[1756713892220,0.008,109740.0,109730.0,1.22592296]
[1756713892419,0.008,109740.0,109730.0,1.47592296]
[1756713893629,0.003,109740.0,109730.0,1.47592296]
[1756713894426,0.003,109740.0,109730.0,1.38479866]
[1756713894625,0.02403257,109740.0,109730.0,0.80479866]
[1756713894830,0.02403257,109740.0,109730.0,1.11479866]
[1756713895131,0.003,109740.0,109730.0,1.11479866]
[1756713895830,0.003,109740.0,109730.0,1.20592296]
[1756713896217,0.00013662,109750.0,109730.0,1.11379866]
[1756713896421,0.00013662,109750.0,109740.0,0.3608]
[1756713896620,0.00013662,109750.0,109740.0,0.68713491]
[1756713896822,0.25013662,109750.0,109740.0,0.4408]
[1756713897223,0.25013662,109750.0,109740.0,0.44535]
[1756713897435,0.25613662,109750.0,109740.0,0.44535]
[1756713897929,0.25013662,109750.0,109740.0,0.44535]
[1756713898228,0.25013662,109750.0,109740.0,0.69635]
[1756713898229,1.19209662,109750.0,109740.0,0.69635]
[1756713898829,1.19209662,109750.0,109740.0,0.44635]
[1756713899235,0.94209662,109750.0,109740.0,0.44635]
[1756713899535,0.93509662,109750.0,109740.0,0.44535]
[1756713899720,0.94209662,109750.0,109740.0,0.91268491]
[1756713899927,0.00713662,109750.0,109740.0,0.91268491]
[1756713900230,0.00013662,109750.0,109740.0,1.25380101]
[1756713900433,11.99286338,109760.0,109750.0,0.0911078]
[1756713900632,11.99286338,109760.0,109750.0,1.05824271]
[1756713901132,11.99286338,109760.0,109750.0,2.2613278]
[1756713901327,11.99286338,109760.0,109750.0,2.75399762]
[1756713902523,11.99286338,109760.0,109750.0,2.50766271]
[1756713902729,11.99286338,109760.0,109750.0,2.75399762]
[1756713902931,11.99486338,109760.0,109750.0,2.75499762]
[1756713903525,11.99286338,109760.0,109750.0,2.75399762]
[1756713903727,11.99686338,109760.0,109750.0,2.75499762]
[1756713903931,11.73449918,109760.0,109750.0,2.75499762]
[1756713904234,11.73049918,109760.0,109750.0,2.75399762]
[1756713904432,11.73249918,109760.0,109750.0,2.75491762]
[1756713904635,11.72781379,109760.0,109750.0,2.75491762]
[1756713905131,11.3103793,109760.0,109750.0,2.49041762]
[1756713905342,9.422367,109760.0,109750.0,2.69507961]
[1756713905636,9.3744487,109760.0,109750.0,2.69507961]
[1756713905938,9.3550387,109760.0,109750.0,2.69507961]
[1756713906137,9.26386789,109760.0,109750.0,2.69507961]
[1756713906436,9.26186789,109760.0,109750.0,2.69407961]
[1756713906636,9.25737421,109760.0,109750.0,2.69507961]
[1756713907033,9.09304295,109760.0,109750.0,2.69507961]
[1756713907537,9.05662295,109760.0,109750.0,1.76023961]
[1756713907730,8.99754256,109760.0,109750.0,2.20228979]
[1756713907930,8.96065646,109760.0,109750.0,2.69495961]
[1756713908137,8.94566646,109760.0,109750.0,2.81397913]
[1756713908337,8.94284646,109760.0,109750.0,2.81397913]
[1756713908839,8.57824646,109760.0,109750.0,2.81397913]
[1756713909033,8.09476646,109760.0,109750.0,2.81397913]
[1756713909336,4.24071415,109760.0,109750.0,3.84589115]
[1756713909533,3.42384491,109760.0,109750.0,3.84589115]
[1756713909728,2.86508892,109760.0,109750.0,3.84589115]
[1756713910042,1.76026804,109760.0,109750.0,3.84589115]
[1756713910234,1.47210989,109760.0,109750.0,3.26585115]
[1756713910538,1.32448283,109760.0,109750.0,3.29514833]
[1756713911136,1.29686283,109760.0,109750.0,3.54514833]
[1756713911328,1.29686283,109760.0,109750.0,3.34514833]
[1756713911530,1.29686283,109760.0,109750.0,2.92469913]
[1756713912042,1.29506268,109760.0,109750.0,2.93469913]
[1756713912237,0.90511828,109760.0,109750.0,3.27581115]
[1756713912445,0.04671808,109760.0,109750.0,3.81581115]
[1756713912631,0.3608,109810.0,109780.0,0.1010782]
[1756713912835,0.3608,109810.0,109800.0,0.24633491]
[1756713913137,0.3608,109810.0,109800.0,0.58633491]
[1756713913342,1.2208,109820.0,109800.0,0.92373682]
[1756713913543,1.27148,109820.0,109810.0,0.24633491]
[1756713913743,2.20796,109820.0,109810.0,0.25554915]
[1756713914946,2.20792,109820.0,109810.0,0.25554915]
[1756713915143,2.20792,109820.0,109810.0,0.00921424]
[1756713915442,2.20792,109820.0,109810.0,0.3509969]
[1756713916044,2.45792,109820.0,109810.0,0.10466199]
[1756713916239,2.46692,109820.0,109810.0,0.10566199]
[1756713916447,1.53044,109820.0,109810.0,0.10566199]
[1756713916743,2.46568,109820.0,109810.0,0.10566199]
[1756713917642,2.46568,109820.0,109810.0,0.11021199]
[1756713918345,1.53044,109820.0,109810.0,0.11021199]
[1756713918546,2.4656,109820.0,109810.0,0.11021199]
[1756713919245,2.46532,109820.0,109810.0,0.11021199]
[1756713919841,1.28016,109820.0,109810.0,0.6665469]
[1756713920041,2.21464,109820.0,109810.0,0.3565469]
[1756713920247,2.21464,109820.0,109810.0,0.47021199]
[1756713920248,1.304,109820.0,109810.0,0.47021199]
[1756713920545,1.304,109820.0,109810.0,0.7165469]
[1756713920735,1.304,109820.0,109810.0,0.3765469]
[1756713922046,1.304,109820.0,109810.0,0.3565469]
[1756713922539,2.71097491,109820.0,109810.0,0.11021199]
[1756713922844,2.45564,109820.0,109810.0,0.10921199]
[1756713923233,2.2096,109820.0,109810.0,0.3565469]
[1756713923938,2.2096,109820.0,109810.0,0.11021199]
[1756713924246,2.70593491,109820.0,109810.0,0.11021199]
[1756713924745,2.4596,109820.0,109810.0,0.11021199]
[1756713925041,2.70593491,109820.0,109810.0,0.11021199]
[1756713925246,2.72645795,109820.0,109810.0,0.11021199]
[1756713925444,1.78801795,109820.0,109810.0,0.10921199]
[1756713925643,2.72941795,109820.0,109810.0,0.11021199]
[1756713928449,1.79501795,109820.0,109810.0,0.11021199]
[1756713928649,2.72941795,109820.0,109810.0,0.11021199]
[1756713929640,2.48308304,109820.0,109810.0,0.11021199]
[1756713929950,2.72941795,109820.0,109810.0,0.11021199]
[1756713931148,2.77856446,109820.0,109810.0,0.11021199]
[1756713933255,2.77852446,109820.0,109810.0,0.11021199]
[1756713933456,1.84416446,109820.0,109810.0,0.11021199]
[1756713933656,2.77852446,109820.0,109810.0,0.11021199]
[1756713933856,1.59416446,109820.0,109810.0,0.11021199]
[1756713934057,1.54493795,109820.0,109810.0,0.11013199]
[1756713934246,2.47929795,109820.0,109810.0,0.11013199]
[1756713934451,2.52844446,109820.0,109810.0,0.11013199]
[1756713934854,2.77844446,109820.0,109810.0,0.11013199]
[1756713935360,1.84408446,109820.0,109810.0,0.11013199]
[1756713935557,2.77840446,109820.0,109810.0,0.11013199]
[1756713936352,1.34774955,109820.0,109810.0,0.19013199]
[1756713936558,2.47925795,109820.0,109810.0,0.18558199]
[1756713936758,1.29860304,109820.0,109810.0,0.18558199]
[1756713936956,1.34774955,109820.0,109810.0,0.18558199]
[1756713937161,2.28206955,109820.0,109810.0,0.18558199]
[1756713937561,1.34774955,109820.0,109810.0,0.18558199]
[1756713937755,2.28206955,109820.0,109810.0,0.18558199]
[1756713937956,1.59408446,109820.0,109810.0,0.19013199]
[1756713938360,1.34774955,109820.0,109810.0,0.19013199]
[1756713938550,2.28202955,109820.0,109810.0,0.19013199]
[1756713938753,2.23288304,109820.0,109810.0,0.19013199]
[1756713939351,2.47921795,109820.0,109810.0,0.19013199]
[1756713939555,2.28202955,109820.0,109810.0,0.19013199]
[1756713940057,2.47921795,109820.0,109810.0,0.19013199]
[1756713940660,2.52836446,109820.0,109810.0,0.19013199]
[1756713941059,2.52836446,109820.0,109810.0,0.11013199]
[1756713941257,2.72921795,109820.0,109810.0,0.11013199]
[1756713942561,2.77836446,109820.0,109810.0,0.11013199]
[1756713943267,2.77836446,109820.0,109800.0,0.00013662]
[1756713943268,0.3608,109790.0,109740.0,0.02069538]
[1756713943463,0.96793491,109750.0,109740.0,0.36069538]
[1756713943760,1.41921491,109750.0,109740.0,0.47069538]
[1756713943962,2.2200663,109750.0,109740.0,0.39069538]
[1756713944161,2.2200663,109750.0,109730.0,0.02887527]
[1756713944162,2.29274059,109750.0,109730.0,0.01995575]
[1756713944358,1.4079863,109740.0,109730.0,0.01995575]
[1756713944558,1.4079863,109740.0,109730.0,0.02450575]
[1756713944756,1.4079863,109740.0,109730.0,0.00455]
[1756713944757,0.85713491,109740.0,109730.0,0.00455]
[1756713944964,0.3608,109730.0,109700.0,0.04614]
[1756713945160,0.87543734,109740.0,109660.0,0.39138113]
[1756713945161,0.96793491,109710.0,109660.0,0.07929718]
[1756713945366,0.96793491,109670.0,109650.0,0.28693383]
[1756713945658,0.3608,109660.0,109650.0,0.34633491]
[1756713945862,1.25364,109660.0,109640.0,0.07929718]
[1756713946061,0.3608,109650.0,109640.0,0.42385718]
[1756713946458,0.3608,109650.0,109640.0,0.36456]
[1756713946658,1.34292,109650.0,109640.0,0.00456]
[1756713946860,1.34292,109650.0,109640.0,0.08385718]
[1756713947059,1.34292,109650.0,109640.0,0.00456]
[1756713947262,2.17608334,109650.0,109640.0,0.00456]
[1756713947562,2.49740684,109650.0,109640.0,0.11022199]
[1756713947752,2.50107193,109650.0,109640.0,0.11022199]
[1756713947956,1.48759197,109650.0,109640.0,0.11022199]
[1756713948260,2.25977702,109650.0,109640.0,0.11022199]
[1756713948463,1.23759197,109650.0,109640.0,0.11022199]
[1756713948760,0.94962843,109650.0,109640.0,0.36022199]
[1756713948959,1.34968,109650.0,109640.0,0.57519694]
[1756713949160,1.34968,109650.0,109640.0,0.35986199]
[1756713949359,1.93650843,109650.0,109640.0,0.10986199]
[1756713949562,1.93650843,109650.0,109640.0,0.57483694]
[1756713949863,1.93650843,109650.0,109640.0,0.35986199]
[1756713950065,1.35016,109650.0,109640.0,0.35986199]